{"text_format":"1","workbook":"xlsx","n_sheets":10,"sheets":["Почетна","1. РЕЗИМЕ НА ИНДИКАТОРИ","2. ВКУПНО СОБРАН ОТПАД","3. ВКУПНО ГЕНЕРИРАН ОТПАД","4. МОРФОЛОГИЈА НА ОТПАД","5. ДЕПОНИРАЊЕ","6. ИСКОРИСТУВАЊЕ НА ОТПАД","7. ПОКРИВАЊЕ ТРОШОЦИ ЗА С&Т","8. ИНВЕСТИЦИСКО ФИНАНСИРАЊЕ","9. НАРАТИВНИ ИНФОРМАЦИИ ЗА ЦО"],"not_rendered":{"charts":9,"images":0,"macros":1,"external_links":0,"defined_names":9,"comments":6,"pivot_tables":0},"unopened":[],"bounds":{"document_bytes":16777216,"sheet_cells":100000,"rows_first":2000,"rows_last":500,"rows_between":2000,"halvings":0,"cell_chars":16384,"cell_head_chars":4096},"cells_cut":0,"cells_raw":0,"read":"whole","date_system":"1900"}

{"sheet":"Почетна","index":0,"n_rows":49,"n_cols":7,"rows_kept":49,"cut":false,"hidden":false,"merged":[[0,0,2,10],[14,6,14,9],[17,6,17,9],[7,5,14,5],[7,6,7,9],[8,6,8,9],[9,6,9,9],[10,6,10,9],[11,6,11,9],[12,6,12,9],[13,6,13,9]]}
["Важна забелешка: За да се овозможи правилно функционирање на алатката SWIS, неопходно е да се вклучат Макроа (Macros) пред да се започне со внесување на податоци \nВажна забелешка: Кога го заштитувате документот, користете ја опцијата „ Excel Macro - Enabled Workbook“.\n"]
[]
[]
[]
[]
[]
[]
[null,null,null,null,null,"ВНЕС НА ПОДАТОЦИ","2. ВКУПНО СОБРАН ОТПАД"]
[null,null,null,null,null,null,"3. ВКУПНО ГЕНЕРИРАН ОТПАД"]
[null,null,null,null,null,null,"4. МОРФОЛОГИЈА НА ОТПАД"]
[null,null,null,null,null,null,"5. ДЕПОНИРАЊЕ"]
[null,null,null,null,null,null,"6. ИСКОРИСТУВАЊЕ НА ОТПАД"]
[null,null,null,null,null,null,"7. ПОКРИВАЊЕ ТРОШОЦИ ЗА Т&Т"]
[null,null,null,null,null,null,"8. ИНВЕСТИЦИСКО ФИНАНСИРАЊЕ"]
[null,null,null,null,null,null,"9. НАРАТИВНИ ИНФОРМАЦИИ ЗА ЦО"]
[]
[]
[null,null,null,null,null,"РЕЗУЛТАТ","1. РЕЗИМЕ НА ИНДИКАТОРИ"]
[]
[]
[]
[]
[]
[]
[]
[]
[]
[]
[]
[]
[]
[]
[]
[]
[]
[]
[]
[]
[]
[]
[]
[]
[]
[]
[]
[]
[]
[]
[null,null,null,null,null,null,"Milisav Aleksic, freelance consultant, Belgrade, Serbia, milisav.aleksic@gmai.com "]

{"sheet":"1. РЕЗИМЕ НА ИНДИКАТОРИ","index":1,"n_rows":63,"n_cols":6,"rows_kept":63,"cut":false,"hidden":false,"merged":[]}
[null,"Податоци за година",{"$f":"'2. ВКУПНО СОБРАН ОТПАД'!E1","v":0}]
[null,{"$f":"'2. ВКУПНО СОБРАН ОТПАД'!B2:F2","v":"Пример општина"}]
[null,"Површина во km2",{"$f":"IFERROR('2. ВКУПНО СОБРАН ОТПАД'!C3,\"\")","v":0}]
[null,"Вкупен број на жители",{"$f":"IFERROR('2. ВКУПНО СОБРАН ОТПАД'!C4,\"\")","v":0}]
[null,"Вкупен број на домаќинства",{"$f":"IFERROR('2. ВКУПНО СОБРАН ОТПАД'!C5,\"\")","v":0}]
[null,"РЕЗИМЕ НА ИНДИКАТОРИ ЗА УПРАВУВАЊЕ СО КОМУНАЛЕН ОТПАД",null,"Опсег на индикаторите","од","до"]
["I","СОБИРАЊЕ И ТРАНСПОРТ НА КОМУНАЛЕН ОТПАД"]
[1,{"$f":"'7. ПОКРИВАЊЕ ТРОШОЦИ ЗА С&Т'!G5","v":"Вкупно опслужени домаќинства "},{"$f":"IFERROR('7. ПОКРИВАЊЕ ТРОШОЦИ ЗА С&Т'!I5,\"\")","v":""},"> 70%",0.7,1]
[2,"Покриени урбани области ",{"$f":"IFERROR('7. ПОКРИВАЊЕ ТРОШОЦИ ЗА С&Т'!I6,\"\")","v":""},"> 90%",0.9,1]
[3,"Покриени рурални области ",{"$f":"IFERROR('7. ПОКРИВАЊЕ ТРОШОЦИ ЗА С&Т'!I7,\"\")","v":""},"> 60%",0.6,1]
[4,"ПРОСЕЧНО собран отпад / домаќинство / кг / ден",{"$f":"IFERROR('2. ВКУПНО СОБРАН ОТПАД'!J10,\"\")","v":""},"1,05 - 3,6kg",1.0499999999999998,3.5999999999999996]
[5,{"$f":"'3. ВКУПНО ГЕНЕРИРАН ОТПАД'!B6","v":"Просечно создаден отпад / по лице / кг / ден"},{"$f":"IFERROR('3. ВКУПНО ГЕНЕРИРАН ОТПАД'!C6,\"\")","v":""},"0,35 - 1,2kg",0.35,1.2]
[6,{"$f":"'7. ПОКРИВАЊЕ ТРОШОЦИ ЗА С&Т'!B22","v":"Количина отпад собран годишно, по вработен во УЦО / тони"},{"$f":"IFERROR('7. ПОКРИВАЊЕ ТРОШОЦИ ЗА С&Т'!C22,\"\")","v":""},"> 650 тон/вработен",650,1600]
[7,{"$f":"'7. ПОКРИВАЊЕ ТРОШОЦИ ЗА С&Т'!B23","v":"Број на население опслужено од вработени во УЦО"},{"$f":"IFERROR('7. ПОКРИВАЊЕ ТРОШОЦИ ЗА С&Т'!C23,\"\")","v":""},"> 1300 жители/вработен",1300,7000]
[8,{"$f":"'7. ПОКРИВАЊЕ ТРОШОЦИ ЗА С&Т'!B24","v":"Број на вработени во УЦО на 1000 жители "},{"$f":"IFERROR('7. ПОКРИВАЊЕ ТРОШОЦИ ЗА С&Т'!C24:D24,\"\")","v":""},"1 - 2 вработен/1000 жители",1,2]
[9,{"$f":"'7. ПОКРИВАЊЕ ТРОШОЦИ ЗА С&Т'!B21","v":"Сооднос на административни и оперативни работници, 1:"},{"$f":"IFERROR('7. ПОКРИВАЊЕ ТРОШОЦИ ЗА С&Т'!C21:D21,\"\")","v":""},null,14,25]
[10,{"$f":"'9. НАРАТИВНИ ИНФОРМАЦИИ ЗА ЦО'!C55","v":"ЗБИР, волумен на собран отпад даден во m3"},{"$f":"'9. НАРАТИВНИ ИНФОРМАЦИИ ЗА ЦО'!H55","v":0},null,{"$f":"C18","v":""},{"$f":"C19","v":""}]
[11,"Потребен волумен според реалниот степен на собирање, во m³ ",{"$f":"IFERROR(('2. ВКУПНО СОБРАН ОТПАД'!C10*'2. ВКУПНО СОБРАН ОТПАД'!J10)/'2. ВКУПНО СОБРАН ОТПАД'!G10/1000,\"\")","v":""}]
[12,"Потребен волумен според 100% степен на собирање, во m³ ",{"$f":"IFERROR(('2. ВКУПНО СОБРАН ОТПАД'!C5*'2. ВКУПНО СОБРАН ОТПАД'!J10)/'2. ВКУПНО СОБРАН ОТПАД'!G10/1000,\"\")","v":""}]
[13,"Сооднос на моменталниот и потребниот волумен според реалниот, моментален степен на собирање ",{"$f":"IFERROR(C18/C17,\"\")","v":""},{"$f":"1:1","v":0},1,1]
[14,"Сооднос на моменталниот и потребниот волумен според 100% степен на собирање ",{"$f":"IFERROR(C19/C17,\"\")","v":""},null,1,1]
["II","КОЛИЧИНИ КОМУНАЛЕН ОТПАД"]
[15,{"$f":"'3. ВКУПНО ГЕНЕРИРАН ОТПАД'!L9","v":"Проценка на вкупно генериран отпад во тони/годишно"},{"$f":"IFERROR('3. ВКУПНО ГЕНЕРИРАН ОТПАД'!L21,\"\")","v":0}]
[16,{"$f":"'2. ВКУПНО СОБРАН ОТПАД'!H9","v":"Количини на собран отпад годишно во тони"},{"$f":"'2. ВКУПНО СОБРАН ОТПАД'!H21","v":0}]
[17,"Однос помеѓу отпадот собран во урбани и рурални области",{"$f":"IFERROR('7. ПОКРИВАЊЕ ТРОШОЦИ ЗА С&Т'!H6/'7. ПОКРИВАЊЕ ТРОШОЦИ ЗА С&Т'!H7,\"\")","v":""}]
[18,{"$f":"'3. ВКУПНО ГЕНЕРИРАН ОТПАД'!M9","v":"Проценка на неконтролирано отстранет отпад во тони / годишно"},{"$f":"IFERROR('3. ВКУПНО ГЕНЕРИРАН ОТПАД'!M21,\"\")","v":0}]
[19,"Неконтролирано отстранет отпад во % од вкупно генериран отпад",{"$f":"IFERROR('3. ВКУПНО ГЕНЕРИРАН ОТПАД'!N21,\"\")","v":""}]
[20,"Неконтролирано отстранет отпад во % од вкупно собран отпад",{"$f":"'3. ВКУПНО ГЕНЕРИРАН ОТПАД'!O21","v":0}]
["III","ДЕПОНИРАЊЕ НА КОМУНАЛЕН ОТПАД БЕЗ СЕЛЕКЦИЈА"]
[21,"Комунален отпад депониран во традиционална депонија без селекција, во %",{"$f":"IFERROR('5. ДЕПОНИРАЊЕ'!F24,\"\")","v":""},null,0,0]
[22,"Комунален отпад депониран во контролирана депонија без селекција, во %",{"$f":"IFERROR('5. ДЕПОНИРАЊЕ'!H24,\"\")","v":""},null,1,1]
[23,"Комунален отпад согорен без селекција/запален без селекција, во %",{"$f":"IFERROR('5. ДЕПОНИРАЊЕ'!J24,\"\")","v":""},null,0,1]
["IV","ДЕПОНИРАЊЕ НА КОМУНАЛЕН ОТПАД ПО СЕЛЕКЦИЈА"]
[24,"Депониран отпад по селекција, во % од собраниот",{"$f":"IFERROR('6. ИСКОРИСТУВАЊЕ НА ОТПАД'!M24,\"\")","v":""},"65% - 35%",0.65,0.35]
[25,"Просек на отпад од домаќинства депониран по лице / кг / ден",{"$f":"IFERROR(C12*C34,\"\")","v":""},"0,23 - 0,42kg/по лице на ден ",{"$f":"E11*E34","v":0.68249999999999988},{"$f":"F11*F34","v":1.2599999999999998}]
[26,"Издвоен отпад во % од вкупно собраниот ",{"$f":"IFERROR('6. ИСКОРИСТУВАЊЕ НА ОТПАД'!F24+'6. ИСКОРИСТУВАЊЕ НА ОТПАД'!H24,\"\")","v":""},"35% - 65%",{"$f":"100%-E34","v":0.35},{"$f":"100%-F34","v":0.65}]
[27,"Просек на отпад од домаќинства, селектиран, по лице / кг / ден ",{"$f":"IFERROR(C12*C36,\"\")","v":""},"0,12 - 0,78kg/по лице на ден",{"$f":"E36*E11","v":0.36749999999999994},{"$f":"F36*F11","v":2.34}]
["V","ИСКОРИСТУВАЊЕ НА ОТПАД ПО СЕЛЕКЦИЈА"]
[28,"% од вкупно издвоен отпад, рециклиран и пуштен во продажба, вклучувајќи ги и резервите ",{"$f":"IFERROR('6. ИСКОРИСТУВАЊЕ НА ОТПАД'!R24,\"\")","v":""},"0% - 80%",0,0.8]
[29,"% од вкупно издвоен отпад, согорен, со искористување на енергија ",{"$f":"IFERROR('6. ИСКОРИСТУВАЊЕ НА ОТПАД'!T24,\"\")","v":""},"0% - 40%",0,0.4]
[30,"% од вкупно издвоен отпад, компостиран",{"$f":"IFERROR('6. ИСКОРИСТУВАЊЕ НА ОТПАД'!V24,\"\")","v":""},"0% - 65%",0,0.65]
["VI","КАПАЦИТЕТ НА ИСКОРИСТУВАЊЕ НА ДЕПОНИЈАТА "]
[31,{"$f":"'6. ИСКОРИСТУВАЊЕ НА ОТПАД'!B30","v":"Моментално искористен капацитет на депонијата"},{"$f":"'6. ИСКОРИСТУВАЊЕ НА ОТПАД'!D30","v":0},"0 - 100%",0,1]
[32,{"$f":"'6. ИСКОРИСТУВАЊЕ НА ОТПАД'!B33","v":"Животен век на депонијата - преостанати години според моменталната стапка на депонирање, без селектирање и согорување"},{"$f":"IFERROR('6. ИСКОРИСТУВАЊЕ НА ОТПАД'!D33,\"\")","v":""},"5 - 10 години",5,10]
[33,{"$f":"'6. ИСКОРИСТУВАЊЕ НА ОТПАД'!B32","v":"Животен век на депонијата - преостанати години по селектирање, рециклирање и искористување"},{"$f":"IFERROR('6. ИСКОРИСТУВАЊЕ НА ОТПАД'!D32,\"\")","v":""},"> 30 години",5,30]
[34,{"$f":"'6. ИСКОРИСТУВАЊЕ НА ОТПАД'!B27","v":"Просечно тони отпад депонирани дневно, пред селектирање"},{"$f":"IFERROR('6. ИСКОРИСТУВАЊЕ НА ОТПАД'!D27,\"\")","v":""}]
[35,{"$f":"'6. ИСКОРИСТУВАЊЕ НА ОТПАД'!B28","v":"Просечно тони отпад депонирани дневно, по селектирање"},{"$f":"IFERROR('6. ИСКОРИСТУВАЊЕ НА ОТПАД'!D28,\"\")","v":""}]
["VII","МОМЕНТАЛНИ ТРОШОЦИ, ПЛАНИРАНИ ИНВЕСТИЦИИ И ПРОЦЕНЕТИ ТРОШОЦИ ВО ДЕНАРИ"]
[null,"По денари / тон"]
[36,{"$f":"'7. ПОКРИВАЊЕ ТРОШОЦИ ЗА С&Т'!B25","v":"Моментален трошок за собирање и транспорт на отпад, ден./тон "},{"$f":"IFERROR('7. ПОКРИВАЊЕ ТРОШОЦИ ЗА С&Т'!C25,\"\")","v":""},null,10,45]
[37,{"$f":"'8. ИНВЕСТИЦИСКО ФИНАНСИРАЊЕ'!B68","v":"Проценето зголемување на трошокот  за собирање и транспорт на отпад, изразен во ден. /тон. "},{"$f":"IFERROR('8. ИНВЕСТИЦИСКО ФИНАНСИРАЊЕ'!C68,\"\")","v":""}]
[38,{"$f":"'8. ИНВЕСТИЦИСКО ФИНАНСИРАЊЕ'!B67","v":"Проценет трошок за собирање и транспорт на отпад, вклучувајќи ги и инвестициите во опрема, изразен во ден. /тон. "},{"$f":"IFERROR('8. ИНВЕСТИЦИСКО ФИНАНСИРАЊЕ'!C67,\"\")","v":""}]
[39,{"$f":"'8. ИНВЕСТИЦИСКО ФИНАНСИРАЊЕ'!E67","v":"Проценето зголемување на давачките за инвестиции во рециклирање, искористување и депонирање на собрани количини отпад, изразено во ден. / тон. "},{"$f":"IFERROR('8. ИНВЕСТИЦИСКО ФИНАНСИРАЊЕ'!F67,\"\")","v":""}]
[40,{"$f":"'8. ИНВЕСТИЦИСКО ФИНАНСИРАЊЕ'!E68","v":"Проценет вкупен трошок за УЦО (собирање, транспорт, третирање и депонирање) вклучувајќи ги инвестициите, изразен во ден. / тон"},{"$f":"IFERROR('8. ИНВЕСТИЦИСКО ФИНАНСИРАЊЕ'!F68,\"\")","v":""},null,60,120]
[null,"По домаќинство"]
[41,"Моментален трошок за собирање и транспорт на отпад; домаќинство / година, во денари",{"$f":"IFERROR('2. ВКУПНО СОБРАН ОТПАД'!J10*365/1000*C50,\"\")","v":""}]
[42,"Проценето зголемување на трошокот за собирање и транспорт на отпад по домаќинство / година, во денари",{"$f":"IFERROR(C58-C56,\"\")","v":""}]
[43,"Проценет трошок за собирање и транспорт; домаќинство / година, во денари",{"$f":"IFERROR('2. ВКУПНО СОБРАН ОТПАД'!J10*365/1000*'8. ИНВЕСТИЦИСКО ФИНАНСИРАЊЕ'!C67,\"\")","v":""}]
[44,"Проценето зголемување на давачките за инвестиции во рециклирање, искористување и депонирање на собраните количини отпад; домаќинство / година, во денари",{"$f":"IFERROR('2. ВКУПНО СОБРАН ОТПАД'!J10*365/1000*'8. ИНВЕСТИЦИСКО ФИНАНСИРАЊЕ'!F67,\"\")","v":""}]
[45,"Проценет вкупен трошок на УЦО (собирање, транспорт, третирање и депонирање) со зголемување за инвестиции; домаќинство / година, во денари",{"$f":"IFERROR('2. ВКУПНО СОБРАН ОТПАД'!J10*365/1000*C54,\"\")","v":""}]
[]
[]
[null,"ПОЧЕТНА"]

{"sheet":"2. ВКУПНО СОБРАН ОТПАД","index":2,"n_rows":22,"n_cols":10,"rows_kept":22,"cut":false,"hidden":false,"merged":[[0,4,0,5],[1,1,1,5],[0,2,0,3],[21,1,23,2],[21,3,40,9],[6,2,6,9]]}
[null,"ОПШТИНА","Податочен период - ГОДИНА"]
[null,"Пример општина"]
[null,"Површина во km2"]
[null,"Вкупен број на население "]
[null,"Вкупен број на домаќинства"]
[null,"Просечен бр. членови во домаќинство",{"$f":"C4/C5","v":{"$error":"#DIV/0!"}}]
[null,null,"ВКУПНО КОМУНАЛЕН ОТПАД СОБРАН ОД ОПСЛУЖЕНИ СОЗДАВАЧИ НА ОТПАД"]
[null,null,1,2,2.1,3,4,5,null,6]
[null,"ПОТЕКЛО НА ОТПАДОТ СПОРЕД ВИД","Вкупен број на опслужени создавачи на отпад","Количина на отпад собран на годишно ниво во избрани единици (колона 2.1)","Избрана единица за мерење","Собрана количина, изразена во % од вкупната ","Количина отпад собран на годишно ниво, во тони","Количини на собран отпад годишно во тони",null,"ПРОСЕК на отпад од домаќинства собран по лице / кг / ден"]
[1,"Мешан отпад од домаќинства",null,null,null,{"$f":"I10/$H$21","v":{"$error":"#DIV/0!"}},null,{"$f":"IF(C10=0,D10=0,IF(D10=0,C10=0,D10*G10))","v":true},{"$f":"IFERROR(VALUE(H10),0)","v":0},{"$f":"((H10/C10)/365)*1000","v":{"$error":"#DIV/0!"}}]
[2,"Општински отпад од јавни површини",null,null,null,{"$f":"I11/$H$21","v":{"$error":"#DIV/0!"}},null,{"$f":"IF(C11=0,D11=0,IF(D11=0,C11=0,D11*G11))","v":true},0,{"$f":"((H11/C11)/365)*1000","v":{"$error":"#DIV/0!"}}]
[3,"Габаритен комунален отпад",null,null,null,{"$f":"I11/$H$21","v":{"$error":"#DIV/0!"}},null,true,0,{"$error":"#DIV/0!"}]
[4,"Стопански субјекти",null,null,null,{"$f":"I13/$H$21","v":{"$error":"#DIV/0!"}},null,true,0,{"$error":"#DIV/0!"}]
[5,"Институции (комерцијални и други)",null,null,null,{"$error":"#DIV/0!"},null,true,0,{"$error":"#DIV/0!"}]
[6,"Индустриски неопасен оптад",null,null,null,{"$error":"#DIV/0!"},null,true,0,{"$error":"#DIV/0!"}]
[7,"Градежен отпад",null,null,null,{"$error":"#DIV/0!"},null,true,0,{"$error":"#DIV/0!"}]
[8,"Земјоделски органски отпад",null,null,null,{"$error":"#DIV/0!"},null,true,0,{"$error":"#DIV/0!"}]
[9,"Друго",null,null,null,{"$error":"#DIV/0!"},null,true,0,{"$error":"#DIV/0!"}]
[10,"Друго",null,null,null,{"$error":"#DIV/0!"},null,true,0,{"$error":"#DIV/0!"}]
[11,"Друго",null,null,null,{"$error":"#DIV/0!"},null,true,0,{"$error":"#DIV/0!"}]
[null,"ВКУПНО",null,null,null,{"$f":"SUM(F10:F20)","v":{"$error":"#DIV/0!"}},null,{"$f":"SUM(H10:H20)","v":0}]
[null,"Почетна",null,"Забелешки:"]

{"sheet":"3. ВКУПНО ГЕНЕРИРАН ОТПАД","index":3,"n_rows":23,"n_cols":14,"rows_kept":23,"cut":false,"hidden":false,"merged":[[22,1,24,2],[22,3,42,14],[0,4,0,5],[0,7,0,8],[1,1,1,8],[0,2,0,3],[6,2,6,14]]}
[null,{"$f":"'2. ВКУПНО СОБРАН ОТПАД'!B1","v":"ОПШТИНА"},{"$f":"'2. ВКУПНО СОБРАН ОТПАД'!C1","v":"Податочен период - ГОДИНА"},null,{"$f":"'2. ВКУПНО СОБРАН ОТПАД'!E1:F1","v":0},null,null,{"$f":"'2. ВКУПНО СОБРАН ОТПАД'!E1","v":0}]
[null,{"$f":"'2. ВКУПНО СОБРАН ОТПАД'!B2","v":"Пример општина"}]
[null,"Вкупен бр. на жители",{"$f":"'2. ВКУПНО СОБРАН ОТПАД'!C4","v":0}]
[null,"Вкупен бр. на домаќинства",{"$f":"'2. ВКУПНО СОБРАН ОТПАД'!C5","v":0}]
[null,"Просечен број на членови во домаќинство",{"$f":"C3/C4","v":{"$error":"#DIV/0!"}}]
[null,"Просечно создаден отпад / по лице / кг / ден",{"$f":"(L21/C3/365*1000)","v":{"$error":"#DIV/0!"}}]
[null,null,"ВКУПНО КОМУНАЛЕН ОТПАД ГЕНЕРИРАН ОД СИТЕ ИЗВОРИ ШТО ПРОИЗВЕДУВААТ ОТПАД"]
[null,null,1,2,null,null,2,3,4,5,6,7,8,9]
[null,"ПОТЕКЛО НА ОТПАДОТ, СПОРЕД ВИД","Вкупен број на опслужени создавачи на отпад","Вкупен број на постоечки создавачи на отпад, вклучувајќи ги и опслужените","Quantity of waste collected annually in m3","% of Total Collected","Average waste density conversion factor","Разлика меѓу бројот на постоечки и опслужени создавачи на отпад","Количина отпад собрана годишно, во тони","Проценета опфатеноста на услугите во % од количините","Проценка на просек вкупно генериран отпад (несобран) во тони","Проценка на вкупно генериран отпад во тони/годишно","Проценка на неконтролирано отстранет отпад во тони / годишно","Проценето неконтролирано одлагање на отпад во % во однос на генерираниот отпад"]
[1,{"$f":"'2. ВКУПНО СОБРАН ОТПАД'!B10","v":"Мешан отпад од домаќинства"},{"$f":"'2. ВКУПНО СОБРАН ОТПАД'!C10","v":0},null,{"$f":"IF('2. ВКУПНО СОБРАН ОТПАД'!H10=FALSE,'2. ВКУПНО СОБРАН ОТПАД'!D10=0,'2. ВКУПНО СОБРАН ОТПАД'!D10)","v":0},{"$f":"E10/$E$21","v":{"$error":"#DIV/0!"}},{"$f":"'2. ВКУПНО СОБРАН ОТПАД'!G10","v":0},{"$f":"D10-C10","v":0},{"$f":"E10*G10","v":0},{"$f":"C10/D10","v":{"$error":"#DIV/0!"}},{"$f":"IFERROR((I10*(1-J10))/J10, 0)","v":0},{"$f":"IFERROR(IF(J10=0,K10,I10/J10),0)","v":0},{"$f":"L10-I10","v":0},{"$f":"M10/L10","v":{"$error":"#DIV/0!"}}]
[2,{"$f":"'2. ВКУПНО СОБРАН ОТПАД'!B11","v":"Општински отпад од јавни површини"},{"$f":"'2. ВКУПНО СОБРАН ОТПАД'!C11","v":0},null,{"$f":"IF('2. ВКУПНО СОБРАН ОТПАД'!H11=FALSE,'2. ВКУПНО СОБРАН ОТПАД'!D11=0,'2. ВКУПНО СОБРАН ОТПАД'!D11)","v":0},{"$error":"#DIV/0!"},{"$f":"'2. ВКУПНО СОБРАН ОТПАД'!G11","v":0},{"$f":"D11-C11","v":0},0,{"$f":"C11/D11","v":{"$error":"#DIV/0!"}},0,{"$f":"IFERROR(IF(J11=0,K11,I11/J11),0)","v":0},{"$f":"L11-I11","v":0},{"$error":"#DIV/0!"}]
[3,{"$f":"'2. ВКУПНО СОБРАН ОТПАД'!B12","v":"Габаритен комунален отпад"},{"$f":"'2. ВКУПНО СОБРАН ОТПАД'!C12","v":0},null,{"$f":"IF('2. ВКУПНО СОБРАН ОТПАД'!H12=FALSE,'2. ВКУПНО СОБРАН ОТПАД'!D12=0,'2. ВКУПНО СОБРАН ОТПАД'!D12)","v":0},{"$error":"#DIV/0!"},{"$f":"'2. ВКУПНО СОБРАН ОТПАД'!G12","v":0},0,{"$f":"E12*G12","v":0},{"$error":"#DIV/0!"},0,0,0,{"$error":"#DIV/0!"}]
[4,{"$f":"'2. ВКУПНО СОБРАН ОТПАД'!B13","v":"Стопански субјекти"},{"$f":"'2. ВКУПНО СОБРАН ОТПАД'!C13","v":0},null,{"$f":"IF('2. ВКУПНО СОБРАН ОТПАД'!H13=FALSE,'2. ВКУПНО СОБРАН ОТПАД'!D13=0,'2. ВКУПНО СОБРАН ОТПАД'!D13)","v":0},{"$error":"#DIV/0!"},{"$f":"'2. ВКУПНО СОБРАН ОТПАД'!G13","v":0},0,0,{"$error":"#DIV/0!"},0,0,0,{"$error":"#DIV/0!"}]
[5,{"$f":"'2. ВКУПНО СОБРАН ОТПАД'!B14","v":"Институции (комерцијални и други)"},{"$f":"'2. ВКУПНО СОБРАН ОТПАД'!C14","v":0},null,{"$f":"IF('2. ВКУПНО СОБРАН ОТПАД'!H14=FALSE,'2. ВКУПНО СОБРАН ОТПАД'!D14=0,'2. ВКУПНО СОБРАН ОТПАД'!D14)","v":0},{"$error":"#DIV/0!"},{"$f":"'2. ВКУПНО СОБРАН ОТПАД'!G14","v":0},0,0,{"$error":"#DIV/0!"},0,0,0,{"$error":"#DIV/0!"}]
[6,{"$f":"'2. ВКУПНО СОБРАН ОТПАД'!B15","v":"Индустриски неопасен оптад"},{"$f":"'2. ВКУПНО СОБРАН ОТПАД'!C15","v":0},null,{"$f":"IF('2. ВКУПНО СОБРАН ОТПАД'!H15=FALSE,'2. ВКУПНО СОБРАН ОТПАД'!D15=0,'2. ВКУПНО СОБРАН ОТПАД'!D15)","v":0},{"$error":"#DIV/0!"},{"$f":"'2. ВКУПНО СОБРАН ОТПАД'!G15","v":0},0,0,{"$error":"#DIV/0!"},0,0,0,{"$error":"#DIV/0!"}]
[7,{"$f":"'2. ВКУПНО СОБРАН ОТПАД'!B16","v":"Градежен отпад"},{"$f":"'2. ВКУПНО СОБРАН ОТПАД'!C16","v":0},null,{"$f":"IF('2. ВКУПНО СОБРАН ОТПАД'!H16=FALSE,'2. ВКУПНО СОБРАН ОТПАД'!D16=0,'2. ВКУПНО СОБРАН ОТПАД'!D16)","v":0},{"$error":"#DIV/0!"},{"$f":"'2. ВКУПНО СОБРАН ОТПАД'!G16","v":0},0,0,{"$error":"#DIV/0!"},0,0,0,{"$error":"#DIV/0!"}]
[8,{"$f":"'2. ВКУПНО СОБРАН ОТПАД'!B17","v":"Земјоделски органски отпад"},{"$f":"'2. ВКУПНО СОБРАН ОТПАД'!C17","v":0},null,{"$f":"IF('2. ВКУПНО СОБРАН ОТПАД'!H17=FALSE,'2. ВКУПНО СОБРАН ОТПАД'!D17=0,'2. ВКУПНО СОБРАН ОТПАД'!D17)","v":0},{"$error":"#DIV/0!"},{"$f":"'2. ВКУПНО СОБРАН ОТПАД'!G17","v":0},0,0,{"$error":"#DIV/0!"},0,0,0,{"$error":"#DIV/0!"}]
[9,{"$f":"'2. ВКУПНО СОБРАН ОТПАД'!B18","v":"Друго"},{"$f":"'2. ВКУПНО СОБРАН ОТПАД'!C18","v":0},null,{"$f":"IF('2. ВКУПНО СОБРАН ОТПАД'!H18=FALSE,'2. ВКУПНО СОБРАН ОТПАД'!D18=0,'2. ВКУПНО СОБРАН ОТПАД'!D18)","v":0},{"$error":"#DIV/0!"},{"$f":"'2. ВКУПНО СОБРАН ОТПАД'!G18","v":0},0,0,{"$error":"#DIV/0!"},0,0,0,{"$error":"#DIV/0!"}]
[10,{"$f":"'2. ВКУПНО СОБРАН ОТПАД'!B19","v":"Друго"},{"$f":"'2. ВКУПНО СОБРАН ОТПАД'!C19","v":0},null,{"$f":"IF('2. ВКУПНО СОБРАН ОТПАД'!H19=FALSE,'2. ВКУПНО СОБРАН ОТПАД'!D19=0,'2. ВКУПНО СОБРАН ОТПАД'!D19)","v":0},{"$f":"E19/$E$21","v":{"$error":"#DIV/0!"}},{"$f":"'2. ВКУПНО СОБРАН ОТПАД'!G19","v":0},{"$f":"D19-C19","v":0},{"$f":"E19*G19","v":0},{"$f":"C19/D19","v":{"$error":"#DIV/0!"}},0,0,{"$f":"L19-I19","v":0},{"$f":"M19/L19","v":{"$error":"#DIV/0!"}}]
[11,{"$f":"'2. ВКУПНО СОБРАН ОТПАД'!B20","v":"Друго"},{"$f":"'2. ВКУПНО СОБРАН ОТПАД'!C20","v":0},null,{"$f":"IF('2. ВКУПНО СОБРАН ОТПАД'!H20=FALSE,'2. ВКУПНО СОБРАН ОТПАД'!D20=0,'2. ВКУПНО СОБРАН ОТПАД'!D20)","v":0},{"$error":"#DIV/0!"},{"$f":"'2. ВКУПНО СОБРАН ОТПАД'!G20","v":0},0,0,{"$error":"#DIV/0!"},0,0,0,{"$error":"#DIV/0!"}]
[null,"ВКУПНО",{"$f":"SUM(C10:C20)","v":0},null,{"$f":"SUM(E10:E20)","v":0},null,null,null,{"$f":"SUM(I10:I20)","v":0},null,{"$f":"SUM(K10:K20)","v":0},{"$f":"SUM(L10:L20)","v":0},{"$f":"SUM(M10:M20)","v":0},{"$f":"M21/L21","v":{"$error":"#DIV/0!"}}]
[]
[null,"ПОЧЕТНА",null,"Забелешки:  "]

{"sheet":"4. МОРФОЛОГИЈА НА ОТПАД","index":4,"n_rows":24,"n_cols":9,"rows_kept":24,"cut":false,"hidden":false,"merged":[[1,1,1,5],[1,7,1,11],[0,1,0,2],[23,1,25,3],[23,5,38,13]]}
[null,{"$f":"'2. ВКУПНО СОБРАН ОТПАД'!B1","v":"ОПШТИНА"},null,{"$f":"'2. ВКУПНО СОБРАН ОТПАД'!C1","v":"Податочен период - ГОДИНА"},{"$f":"'2. ВКУПНО СОБРАН ОТПАД'!E1:F1","v":0}]
[null,{"$f":"'2. ВКУПНО СОБРАН ОТПАД'!B2","v":"Пример општина"}]
[]
[null,1,2,3,4,5]
[null,"СТРУКТУРА НА МЕШАН КОМУНАЛЕН ОТПАД","Проценка на просечна содржина","Количина собран отпад во тони ","Количина генериран отпад во тони ","Неконтролирани количини во тони ",null,null,"Estimated Average Density t/m3"]
[1,"Отпад од градини",null,{"$f":"'2. ВКУПНО СОБРАН ОТПАД'!$H$21*C6","v":0},{"$f":"'3. ВКУПНО ГЕНЕРИРАН ОТПАД'!$L$21*C6","v":0},{"$f":"E6-D6","v":0},null,null,0.1]
[2,"Друг био- разградив отпад",null,{"$f":"'2. ВКУПНО СОБРАН ОТПАД'!$H$21*C7","v":0},{"$f":"'3. ВКУПНО ГЕНЕРИРАН ОТПАД'!$L$21*C7","v":0},{"$f":"E7-D7","v":0},null,null,0.14399999999999999]
[3,"Хартија",null,{"$f":"'2. ВКУПНО СОБРАН ОТПАД'!$H$21*C8","v":0},{"$f":"'3. ВКУПНО ГЕНЕРИРАН ОТПАД'!$L$21*C8","v":0},0,null,null,0.33300000000000002]
[4,"Стакло",null,{"$f":"'2. ВКУПНО СОБРАН ОТПАД'!$H$21*C9","v":0},{"$f":"'3. ВКУПНО ГЕНЕРИРАН ОТПАД'!$L$21*C9","v":0},0,null,null,0.64]
[5,"Картон",null,{"$f":"'2. ВКУПНО СОБРАН ОТПАД'!$H$21*C10","v":0},{"$f":"'3. ВКУПНО ГЕНЕРИРАН ОТПАД'!$L$21*C10","v":0},0,null,null,0.57569999999999999]
[6,"Картон со фолија",null,{"$f":"'2. ВКУПНО СОБРАН ОТПАД'!$H$21*C11","v":0},{"$f":"'3. ВКУПНО ГЕНЕРИРАН ОТПАД'!$L$21*C11","v":0},0,null,null,0.32]
[7,"Картон со алуминиум",null,{"$f":"'2. ВКУПНО СОБРАН ОТПАД'!$H$21*C12","v":0},{"$f":"'3. ВКУПНО ГЕНЕРИРАН ОТПАД'!$L$21*C12","v":0},0,null,null,0.1]
[8,"Метал - пакувања и останато",null,{"$f":"'2. ВКУПНО СОБРАН ОТПАД'!$H$21*C13","v":0},{"$f":"'3. ВКУПНО ГЕНЕРИРАН ОТПАД'!$L$21*C13","v":0},0]
[9,"Метал - алуминиумски лименки",null,{"$f":"'2. ВКУПНО СОБРАН ОТПАД'!$H$21*C14","v":0},{"$f":"'3. ВКУПНО ГЕНЕРИРАН ОТПАД'!$L$21*C14","v":0},0,null,null,0.17599999999999999]
[10,"Пластично пакување",null,{"$f":"'2. ВКУПНО СОБРАН ОТПАД'!$H$21*C15","v":0},{"$f":"'3. ВКУПНО ГЕНЕРИРАН ОТПАД'!$L$21*C15","v":0},0,null,null,0.129]
[11,"Пластични кеси",null,{"$f":"'2. ВКУПНО СОБРАН ОТПАД'!$H$21*C16","v":0},{"$f":"'3. ВКУПНО ГЕНЕРИРАН ОТПАД'!$L$21*C16","v":0},0,null,null,0.224]
[12,"Тврда пластика",null,{"$f":"'2. ВКУПНО СОБРАН ОТПАД'!$H$21*C17","v":0},{"$f":"'3. ВКУПНО ГЕНЕРИРАН ОТПАД'!$L$21*C17","v":0},0,null,null,0.1]
[13,"Текстил",null,{"$f":"'2. ВКУПНО СОБРАН ОТПАД'!$H$21*C18","v":0},{"$f":"'3. ВКУПНО ГЕНЕРИРАН ОТПАД'!$L$21*C18","v":0},0]
[14,"Кожа",null,{"$f":"'2. ВКУПНО СОБРАН ОТПАД'!$H$21*C19","v":0},{"$f":"'3. ВКУПНО ГЕНЕРИРАН ОТПАД'!$L$21*C19","v":0},0]
[15,"Пелени",null,{"$f":"'2. ВКУПНО СОБРАН ОТПАД'!$H$21*C20","v":0},{"$f":"'3. ВКУПНО ГЕНЕРИРАН ОТПАД'!$L$21*C20","v":0},0]
[16,"Фини елементи (<20mm)",null,{"$f":"'2. ВКУПНО СОБРАН ОТПАД'!$H$21*C21","v":0},{"$f":"'3. ВКУПНО ГЕНЕРИРАН ОТПАД'!$L$21*C21","v":0},0]
[null,"ВКУПНО",{"$f":"SUM(C6:C21)","v":0},{"$f":"SUM(D6:D21)","v":0},{"$f":"SUM(E6:E21)","v":0},{"$f":"SUM(F6:F21)","v":0}]
[]
[null,"ПОЧЕТНА",null,null,null,"Забелешки:  "]

{"sheet":"5. ДЕПОНИРАЊЕ","index":5,"n_rows":34,"n_cols":18,"rows_kept":34,"cut":false,"hidden":false,"merged":[[33,1,34,2],[27,1,27,2],[26,1,26,2],[28,1,28,2],[29,1,29,2],[30,1,30,2],[0,5,0,6],[1,1,1,3],[0,1,0,3],[25,1,25,2],[24,6,24,7],[3,1,3,10],[24,1,24,2],[25,5,31,10],[31,1,31,2],[0,8,0,25],[1,8,1,16]]}
[null,{"$f":"'2. ВКУПНО СОБРАН ОТПАД'!B1","v":"ОПШТИНА"},null,null,{"$f":"'2. ВКУПНО СОБРАН ОТПАД'!C1","v":"Податочен период - ГОДИНА"},{"$f":"'4. МОРФОЛОГИЈА НА ОТПАД'!E1","v":0},null,null,"Во овој работен лист се внесуваат податоци САМО доколку не се врши сепарација на отпадот во општината. Ве молиме погледнете во Прирачникот за употреба."]
[null,{"$f":"'2. ВКУПНО СОБРАН ОТПАД'!B2","v":"Пример општина"},null,null,null,null,null,null,"Дали има сепарација на отпад во општината?",null,null,null,null,null,null,null,null,"No"]
[]
[null,"ДЕПОНИРАН КОМУНАЛЕН ОТПАД И ЖИВОТЕН ВЕК НА ДЕПОНИЈАТА БЕЗ ОРГАНИЗИРАНО ИЗДВОЈУВАЊЕ"]
[null,1,2,3,4,5,6,7,8,9,10]
[null,"СТРУКТУРА НА МЕШАН КОМУНАЛЕН ОТПАД",{"$f":"'4. МОРФОЛОГИЈА НА ОТПАД'!C5","v":"Проценка на просечна содржина"},"Квантитет на собран отпад, во тони","Собран отпад депониран во традиционални депонии, во % од вкупниот отпад","Количини собран отпад депониран во традиционални депонии, во тони","Собран отпад, депониран во контролирани депонии, во % од вкупниот отпад","Количини собран отпад депониран во контролирани депонии, во тони","Собран отпад, согорен без искористување на енергија, во % од вкупниот отпад","Собран отпад, согорен без искористување на енергија, во тони","Вкупно депониран отпад (4+6)"]
[1,{"$f":"'4. МОРФОЛОГИЈА НА ОТПАД'!B6","v":"Отпад од градини"},{"$f":"'4. МОРФОЛОГИЈА НА ОТПАД'!C6","v":0},{"$f":"'2. ВКУПНО СОБРАН ОТПАД'!$H$21*C7","v":0},null,{"$f":"D7*E7","v":0},null,{"$f":"D7*G7","v":0},null,{"$f":"D7*I7","v":0},{"$f":"E7+G7+I7","v":0}]
[2,{"$f":"'4. МОРФОЛОГИЈА НА ОТПАД'!B7","v":"Друг био- разградив отпад"},{"$f":"'4. МОРФОЛОГИЈА НА ОТПАД'!C7","v":0},{"$f":"'2. ВКУПНО СОБРАН ОТПАД'!$H$21*C8","v":0},null,{"$f":"D8*E8","v":0},null,{"$f":"D8*G8","v":0},null,0,0]
[3,{"$f":"'4. МОРФОЛОГИЈА НА ОТПАД'!B8","v":"Хартија"},{"$f":"'4. МОРФОЛОГИЈА НА ОТПАД'!C8","v":0},{"$f":"'2. ВКУПНО СОБРАН ОТПАД'!$H$21*C9","v":0},null,0,null,0,null,0,0]
[4,{"$f":"'4. МОРФОЛОГИЈА НА ОТПАД'!B9","v":"Стакло"},{"$f":"'4. МОРФОЛОГИЈА НА ОТПАД'!C9","v":0},{"$f":"'2. ВКУПНО СОБРАН ОТПАД'!$H$21*C10","v":0},null,0,null,0,null,0,0]
[5,{"$f":"'4. МОРФОЛОГИЈА НА ОТПАД'!B10","v":"Картон"},{"$f":"'4. МОРФОЛОГИЈА НА ОТПАД'!C10","v":0},{"$f":"'2. ВКУПНО СОБРАН ОТПАД'!$H$21*C11","v":0},null,0,null,0,null,0,0]
[6,{"$f":"'4. МОРФОЛОГИЈА НА ОТПАД'!B11","v":"Картон со фолија"},{"$f":"'4. МОРФОЛОГИЈА НА ОТПАД'!C11","v":0},{"$f":"'2. ВКУПНО СОБРАН ОТПАД'!$H$21*C12","v":0},null,0,null,0,null,0,0]
[7,{"$f":"'4. МОРФОЛОГИЈА НА ОТПАД'!B12","v":"Картон со алуминиум"},{"$f":"'4. МОРФОЛОГИЈА НА ОТПАД'!C12","v":0},{"$f":"'2. ВКУПНО СОБРАН ОТПАД'!$H$21*C13","v":0},null,0,null,0,null,0,0]
[8,{"$f":"'4. МОРФОЛОГИЈА НА ОТПАД'!B13","v":"Метал - пакувања и останато"},{"$f":"'4. МОРФОЛОГИЈА НА ОТПАД'!C13","v":0},{"$f":"'2. ВКУПНО СОБРАН ОТПАД'!$H$21*C14","v":0},null,0,null,0,null,0,0]
[9,{"$f":"'4. МОРФОЛОГИЈА НА ОТПАД'!B14","v":"Метал - алуминиумски лименки"},{"$f":"'4. МОРФОЛОГИЈА НА ОТПАД'!C14","v":0},{"$f":"'2. ВКУПНО СОБРАН ОТПАД'!$H$21*C15","v":0},null,0,null,0,null,0,0]
[10,{"$f":"'4. МОРФОЛОГИЈА НА ОТПАД'!B15","v":"Пластично пакување"},{"$f":"'4. МОРФОЛОГИЈА НА ОТПАД'!C15","v":0},{"$f":"'2. ВКУПНО СОБРАН ОТПАД'!$H$21*C16","v":0},null,0,null,0,null,0,0]
[11,{"$f":"'4. МОРФОЛОГИЈА НА ОТПАД'!B16","v":"Пластични кеси"},{"$f":"'4. МОРФОЛОГИЈА НА ОТПАД'!C16","v":0},{"$f":"'2. ВКУПНО СОБРАН ОТПАД'!$H$21*C17","v":0},null,0,null,0,null,0,0]
[12,{"$f":"'4. МОРФОЛОГИЈА НА ОТПАД'!B17","v":"Тврда пластика"},{"$f":"'4. МОРФОЛОГИЈА НА ОТПАД'!C17","v":0},{"$f":"'2. ВКУПНО СОБРАН ОТПАД'!$H$21*C18","v":0},null,0,null,0,null,0,0]
[13,{"$f":"'4. МОРФОЛОГИЈА НА ОТПАД'!B18","v":"Текстил"},{"$f":"'4. МОРФОЛОГИЈА НА ОТПАД'!C18","v":0},{"$f":"'2. ВКУПНО СОБРАН ОТПАД'!$H$21*C19","v":0},null,0,null,0,null,0,0]
[14,{"$f":"'4. МОРФОЛОГИЈА НА ОТПАД'!B19","v":"Кожа"},{"$f":"'4. МОРФОЛОГИЈА НА ОТПАД'!C19","v":0},{"$f":"'2. ВКУПНО СОБРАН ОТПАД'!$H$21*C20","v":0},null,0,null,0,null,0,0]
[15,{"$f":"'4. МОРФОЛОГИЈА НА ОТПАД'!B20","v":"Пелени"},{"$f":"'4. МОРФОЛОГИЈА НА ОТПАД'!C20","v":0},{"$f":"'2. ВКУПНО СОБРАН ОТПАД'!$H$21*C21","v":0},null,0,null,0,null,0,0]
[16,{"$f":"'4. МОРФОЛОГИЈА НА ОТПАД'!B21","v":"Фини елементи (<20mm)"},{"$f":"'4. МОРФОЛОГИЈА НА ОТПАД'!C21","v":0},{"$f":"'2. ВКУПНО СОБРАН ОТПАД'!$H$21*C22","v":0},null,0,null,0,null,0,0]
[null,"ВКУПНО, ГОДИШНО",{"$f":"'4. МОРФОЛОГИЈА НА ОТПАД'!C22","v":0},{"$f":"SUM(D7:D22)","v":0},null,{"$f":"SUM(F7:F22)","v":0},null,{"$f":"SUM(H7:H22)","v":0},null,{"$f":"SUM(J7:J22)","v":0},{"$f":"F23+H23","v":0}]
[null,"% од вкупно ",null,null,null,{"$f":"F23/D23","v":{"$error":"#DIV/0!"}},null,{"$f":"H23/D23","v":{"$error":"#DIV/0!"}},null,{"$f":"J23/D23","v":{"$error":"#DIV/0!"}},{"$f":"F24+H24+J24","v":{"$error":"#DIV/0!"}}]
[null,"Животен век на депонија (традиционална или контролирана)"]
[17,"Работни денови на депонијата годишно",null,null,null,"Забелешки:"]
[18,"Просечно депонирани тони отпад дневно без согорување",null,{"$f":"D23/D26","v":{"$error":"#DIV/0!"}}]
[19,"Проектиран вкупен капацитет на депонијата во тони"]
[20,"Моментално искористен капацитет на депонијата"]
[21,"Преостанат капацитет, во тони",null,{"$f":"D28*(1-D29)","v":0}]
[22,"Преостанати години според моменталниот степен на депонирање со согорување",null,{"$f":"D30/K23","v":{"$error":"#DIV/0!"}}]
[23,"Преостанати години според моменталниот степен на депонирање без согорување",null,{"$f":"D30/D23","v":{"$error":"#DIV/0!"}}]
[]
[null,"ПОЧЕТНА"]

{"sheet":"6. ИСКОРИСТУВАЊЕ НА ОТПАД","index":6,"n_rows":42,"n_cols":25,"rows_kept":42,"cut":false,"hidden":true,"merged":[[4,0,5,1],[24,1,24,4],[1,1,1,4],[24,22,24,24],[0,1,0,3],[23,23,23,24],[4,23,5,24],[22,23,22,24],[22,0,22,1],[3,3,3,22],[23,0,23,1],[22,16,23,16],[1,8,1,16],[0,8,0,24],[41,4,61,19],[34,1,36,3],[25,16,25,24],[22,20,23,20],[22,18,23,18],[22,6,23,6],[22,8,23,8],[22,4,23,4]]}
[null,{"$f":"'2. ВКУПНО СОБРАН ОТПАД'!B1","v":"ОПШТИНА"},null,null,{"$f":"'5. ДЕПОНИРАЊЕ'!E1","v":"Податочен период - ГОДИНА"},{"$f":"'5. ДЕПОНИРАЊЕ'!F1:G1","v":0},null,null,"Во овој работен лист се внесуваат податоци САМО доколку не се врши сепарација на отпадот во општината. Ве молиме погледнете во Прирачникот за употреба."]
[null,{"$f":"'2. ВКУПНО СОБРАН ОТПАД'!B2","v":"Пример општина"},null,null,null,null,null,null,"Дали има сепарација на отпад во општината?",null,null,null,null,null,null,null,null,"No"]
[]
[null,null,null,"ОРГАНИЗИРАНО СЕЛЕКТИРАЊЕ - СЕЛЕКТИРАН И ДЕПОНИРАН КОМУНАЛЕН ОТПАД - ИСКОРИСТУВАЊЕ И ТРЕТМАН НА ОТПАД И ЖИВОТЕН ВЕК НА ДЕПОНИЈАТА"]
["СТРУКТУРА НА МЕШАН КОМУНАЛЕН ОТПАД",null,null,1,2,3,4,5,6,7,8,9,10,11,12,null,13,14,15,16,17,18,19]
[null,null,"Estimated Average Content ","Количина собран отпад, во тони","Комунален отпад селектиран кај изворот, претставен во % од вкупниот ","Количини комунален отпад селектиран кај изворот, во тони","Собран отпад, селектиран на локацијата за депонирање, во % од вкупниот ","Количини отпад селектиран на локација на депонирање, во тони","Селектиран отпад, во % од вкупно собран отпад","Количини селектиран отпад, во тони","Структура на вкупно селектиран отпад","Собран отпад, депониран во депонија, во % од вкупниот отпад","Количини собран отпад, депониран во депонија, во тони","Структура на вкупен отпад депониран во депонија по селектирање, во % од вкупниот","Вкупно % селектиран и депониран отпад",null,"Селектиран отпад, наменет за рециклирање или за резерви, во % од вкупниот селектиран отпад","Селектиран отпад рециклиран и пуштен во продажба, во тони","Селектиран отпад, согорен со или без искористување на енергија, во % од вкупно селектираниот отпад","Селектиран отпад, согорен со или без искористување на енергија, во тони","% на отпад селектиран и компостиран, од вкупно селектиран  отпад","Селектиран и компостиран отпад, во тони","Вкупен % селектиран отпад"]
[1,{"$f":"'4. МОРФОЛОГИЈА НА ОТПАД'!B6","v":"Отпад од градини"},{"$f":"'4. МОРФОЛОГИЈА НА ОТПАД'!C6","v":0},{"$f":"'2. ВКУПНО СОБРАН ОТПАД'!$H$21*C7","v":0},null,{"$f":"D7*E7","v":0},null,{"$f":"D7*G7","v":0},{"$f":"E7+G7","v":0},{"$f":"F7+H7","v":0},{"$f":"J7/J$23","v":{"$error":"#DIV/0!"}},null,{"$f":"D7*L7","v":0},{"$f":"M7/M$23","v":{"$error":"#DIV/0!"}},{"$f":"E7+G7+L7","v":0},null,null,{"$f":"(F7+H7)*Q7","v":0},null,{"$f":"(H7+F7)*S7","v":0},null,{"$f":"(F7+H7)*U7","v":0},{"$f":"Q7+S7+U7","v":0},1,{"$f":"'4. МОРФОЛОГИЈА НА ОТПАД'!B6","v":"Отпад од градини"}]
[2,{"$f":"'4. МОРФОЛОГИЈА НА ОТПАД'!B7","v":"Друг био- разградив отпад"},{"$f":"'4. МОРФОЛОГИЈА НА ОТПАД'!C7","v":0},{"$f":"'2. ВКУПНО СОБРАН ОТПАД'!$H$21*C8","v":0},null,{"$f":"D8*E8","v":0},null,{"$f":"D8*G8","v":0},{"$f":"E8+G8","v":0},{"$f":"F8+H8","v":0},{"$f":"J8/J$23","v":{"$error":"#DIV/0!"}},null,{"$f":"D8*L8","v":0},{"$f":"M8/M$23","v":{"$error":"#DIV/0!"}},0,null,null,0,null,{"$f":"(H8+F8)*S8","v":0},null,{"$f":"(F8+H8)*U8","v":0},{"$f":"Q8+S8+U8","v":0},2,{"$f":"'4. МОРФОЛОГИЈА НА ОТПАД'!B7","v":"Друг био- разградив отпад"}]
[3,{"$f":"'4. МОРФОЛОГИЈА НА ОТПАД'!B8","v":"Хартија"},{"$f":"'4. МОРФОЛОГИЈА НА ОТПАД'!C8","v":0},{"$f":"'2. ВКУПНО СОБРАН ОТПАД'!$H$21*C9","v":0},null,0,null,0,0,0,{"$error":"#DIV/0!"},null,0,{"$error":"#DIV/0!"},0,null,null,0,null,0,null,0,0,3,{"$f":"'4. МОРФОЛОГИЈА НА ОТПАД'!B8","v":"Хартија"}]
[4,{"$f":"'4. МОРФОЛОГИЈА НА ОТПАД'!B9","v":"Стакло"},{"$f":"'4. МОРФОЛОГИЈА НА ОТПАД'!C9","v":0},{"$f":"'2. ВКУПНО СОБРАН ОТПАД'!$H$21*C10","v":0},null,0,null,0,0,0,{"$error":"#DIV/0!"},null,0,{"$error":"#DIV/0!"},0,null,null,0,null,0,null,0,0,4,{"$f":"'4. МОРФОЛОГИЈА НА ОТПАД'!B9","v":"Стакло"}]
[5,{"$f":"'4. МОРФОЛОГИЈА НА ОТПАД'!B10","v":"Картон"},{"$f":"'4. МОРФОЛОГИЈА НА ОТПАД'!C10","v":0},{"$f":"'2. ВКУПНО СОБРАН ОТПАД'!$H$21*C11","v":0},null,0,null,0,0,0,{"$error":"#DIV/0!"},null,0,{"$error":"#DIV/0!"},0,null,null,0,null,0,null,0,0,5,{"$f":"'4. МОРФОЛОГИЈА НА ОТПАД'!B10","v":"Картон"}]
[6,{"$f":"'4. МОРФОЛОГИЈА НА ОТПАД'!B11","v":"Картон со фолија"},{"$f":"'4. МОРФОЛОГИЈА НА ОТПАД'!C11","v":0},{"$f":"'2. ВКУПНО СОБРАН ОТПАД'!$H$21*C12","v":0},null,0,null,0,0,0,{"$error":"#DIV/0!"},null,0,{"$error":"#DIV/0!"},0,null,null,0,null,0,null,0,0,6,{"$f":"'4. МОРФОЛОГИЈА НА ОТПАД'!B11","v":"Картон со фолија"}]
[7,{"$f":"'4. МОРФОЛОГИЈА НА ОТПАД'!B12","v":"Картон со алуминиум"},{"$f":"'4. МОРФОЛОГИЈА НА ОТПАД'!C12","v":0},{"$f":"'2. ВКУПНО СОБРАН ОТПАД'!$H$21*C13","v":0},null,0,null,0,0,0,{"$error":"#DIV/0!"},null,0,{"$error":"#DIV/0!"},0,null,null,0,null,0,null,0,0,7,{"$f":"'4. МОРФОЛОГИЈА НА ОТПАД'!B12","v":"Картон со алуминиум"}]
[8,{"$f":"'4. МОРФОЛОГИЈА НА ОТПАД'!B13","v":"Метал - пакувања и останато"},{"$f":"'4. МОРФОЛОГИЈА НА ОТПАД'!C13","v":0},{"$f":"'2. ВКУПНО СОБРАН ОТПАД'!$H$21*C14","v":0},null,0,null,0,0,0,{"$error":"#DIV/0!"},null,0,{"$error":"#DIV/0!"},0,null,null,0,null,0,null,0,0,8,{"$f":"'4. МОРФОЛОГИЈА НА ОТПАД'!B13","v":"Метал - пакувања и останато"}]
[9,{"$f":"'4. МОРФОЛОГИЈА НА ОТПАД'!B14","v":"Метал - алуминиумски лименки"},{"$f":"'4. МОРФОЛОГИЈА НА ОТПАД'!C14","v":0},{"$f":"'2. ВКУПНО СОБРАН ОТПАД'!$H$21*C15","v":0},null,0,null,0,0,0,{"$error":"#DIV/0!"},null,0,{"$error":"#DIV/0!"},0,null,null,0,null,0,null,0,0,9,{"$f":"'4. МОРФОЛОГИЈА НА ОТПАД'!B14","v":"Метал - алуминиумски лименки"}]
[10,{"$f":"'4. МОРФОЛОГИЈА НА ОТПАД'!B15","v":"Пластично пакување"},{"$f":"'4. МОРФОЛОГИЈА НА ОТПАД'!C15","v":0},{"$f":"'2. ВКУПНО СОБРАН ОТПАД'!$H$21*C16","v":0},null,0,null,0,0,0,{"$error":"#DIV/0!"},null,0,{"$error":"#DIV/0!"},0,null,null,0,null,0,null,0,0,10,{"$f":"'4. МОРФОЛОГИЈА НА ОТПАД'!B15","v":"Пластично пакување"}]
[11,{"$f":"'4. МОРФОЛОГИЈА НА ОТПАД'!B16","v":"Пластични кеси"},{"$f":"'4. МОРФОЛОГИЈА НА ОТПАД'!C16","v":0},{"$f":"'2. ВКУПНО СОБРАН ОТПАД'!$H$21*C17","v":0},null,0,null,0,0,0,{"$error":"#DIV/0!"},null,0,{"$error":"#DIV/0!"},0,null,null,0,null,0,null,0,0,11,{"$f":"'4. МОРФОЛОГИЈА НА ОТПАД'!B16","v":"Пластични кеси"}]
[12,{"$f":"'4. МОРФОЛОГИЈА НА ОТПАД'!B17","v":"Тврда пластика"},{"$f":"'4. МОРФОЛОГИЈА НА ОТПАД'!C17","v":0},{"$f":"'2. ВКУПНО СОБРАН ОТПАД'!$H$21*C18","v":0},null,0,null,0,0,0,{"$error":"#DIV/0!"},null,0,{"$error":"#DIV/0!"},0,null,null,0,null,0,null,0,0,12,{"$f":"'4. МОРФОЛОГИЈА НА ОТПАД'!B17","v":"Тврда пластика"}]
[13,{"$f":"'4. МОРФОЛОГИЈА НА ОТПАД'!B18","v":"Текстил"},{"$f":"'4. МОРФОЛОГИЈА НА ОТПАД'!C18","v":0},{"$f":"'2. ВКУПНО СОБРАН ОТПАД'!$H$21*C19","v":0},null,0,null,0,0,{"$f":"F19+H19","v":0},{"$f":"J19/J$23","v":{"$error":"#DIV/0!"}},null,0,{"$error":"#DIV/0!"},0,null,null,0,null,0,null,0,0,13,{"$f":"'4. МОРФОЛОГИЈА НА ОТПАД'!B18","v":"Текстил"}]
[14,{"$f":"'4. МОРФОЛОГИЈА НА ОТПАД'!B19","v":"Кожа"},{"$f":"'4. МОРФОЛОГИЈА НА ОТПАД'!C19","v":0},{"$f":"'2. ВКУПНО СОБРАН ОТПАД'!$H$21*C20","v":0},null,0,null,0,0,0,{"$error":"#DIV/0!"},null,0,{"$error":"#DIV/0!"},0,null,null,0,null,0,null,0,0,14,{"$f":"'4. МОРФОЛОГИЈА НА ОТПАД'!B19","v":"Кожа"}]
[15,{"$f":"'4. МОРФОЛОГИЈА НА ОТПАД'!B20","v":"Пелени"},{"$f":"'4. МОРФОЛОГИЈА НА ОТПАД'!C20","v":0},{"$f":"'2. ВКУПНО СОБРАН ОТПАД'!$H$21*C21","v":0},null,0,null,0,0,0,{"$error":"#DIV/0!"},null,0,{"$error":"#DIV/0!"},0,null,null,0,null,0,null,0,0,15,{"$f":"'4. МОРФОЛОГИЈА НА ОТПАД'!B20","v":"Пелени"}]
[16,{"$f":"'4. МОРФОЛОГИЈА НА ОТПАД'!B21","v":"Фини елементи (<20mm)"},{"$f":"'4. МОРФОЛОГИЈА НА ОТПАД'!C21","v":0},{"$f":"'2. ВКУПНО СОБРАН ОТПАД'!$H$21*C22","v":0},null,0,null,0,0,0,{"$error":"#DIV/0!"},null,0,{"$error":"#DIV/0!"},0,null,null,0,null,0,null,0,0,16,{"$f":"'4. МОРФОЛОГИЈА НА ОТПАД'!B21","v":"Фини елементи (<20mm)"}]
["ВКУПНО",null,{"$f":"SUM(C7:C22)","v":0},{"$f":"SUM(D7:D22)","v":0},null,{"$f":"SUM(F7:F22)","v":0},null,{"$f":"SUM(H7:H22)","v":0},null,{"$f":"SUM(J7:J22)","v":0},{"$error":"#DIV/0!"},null,{"$f":"SUM(M7:M22)","v":0},{"$f":"SUM(N7:N22)","v":{"$error":"#DIV/0!"}},{"$f":"F23+H23+M23","v":0},null,"од вкупно селектиран отпад",{"$f":"SUM(R7:R22)","v":0},"од вкупно селектиран отпад",{"$f":"SUM(T7:T22)","v":0},"од вкупно селектиран отпад",{"$f":"SUM(V7:V22)","v":0},{"$f":"R23+T23+V23","v":0},"ВКУПНО"]
["% од ВКУПНО",null,null,null,null,{"$f":"F23/D23","v":{"$error":"#DIV/0!"}},null,{"$f":"H23/D23","v":{"$error":"#DIV/0!"}},null,{"$f":"J23/D23","v":{"$error":"#DIV/0!"}},null,null,{"$f":"M23/D23","v":{"$error":"#DIV/0!"}},null,{"$f":"O23/D23","v":{"$error":"#DIV/0!"}},null,null,{"$f":"R23/(F23+H23)","v":{"$error":"#DIV/0!"}},null,{"$f":"T23/(F23+H23)","v":{"$error":"#DIV/0!"}},null,{"$f":"V23/(F23+H23)","v":{"$error":"#DIV/0!"}},{"$f":"R24+T24+V24","v":{"$error":"#DIV/0!"}},"% од ВКУПНО"]
[null,{"$f":"'5. ДЕПОНИРАЊЕ'!B25:C25","v":"Животен век на депонија (традиционална или контролирана)"}]
[17,"Работни денови на депонијата годишно",null,null,null,null,null,null,null,null,null,null,null,null,null,null," "]
[18,"Просечно тони отпад депонирани дневно, пред селектирање",null,{"$f":"D23/D26","v":{"$error":"#DIV/0!"}}]
[19,"Просечно тони отпад депонирани дневно, по селектирање",null,{"$f":"M23/D26","v":{"$error":"#DIV/0!"}}]
[20,"Вкупно проектиран капацитет на депонијата, во тони"]
[21,{"$f":"'5. ДЕПОНИРАЊЕ'!B29","v":"Моментално искористен капацитет на депонијата"}]
[22,"Преостанат капацитет, во тони",null,{"$f":"D29*(1-D30)","v":0}]
[23,"Животен век на депонијата - преостанати години по селектирање, рециклирање и искористување",null,{"$f":"D31/M23","v":{"$error":"#DIV/0!"}}]
[24,"Животен век на депонијата - преостанати години според моменталната стапка на депонирање, без селектирање и согорување",null,{"$f":"D31/D23","v":{"$error":"#DIV/0!"}}]
[]
[null,"ПОЧЕТНА"]
[]
[]
[]
[]
[]
[]
[null,null,null,null,"Забелешки:  "]

{"sheet":"7. ПОКРИВАЊЕ ТРОШОЦИ ЗА С&Т","index":7,"n_rows":27,"n_cols":15,"rows_kept":27,"cut":false,"hidden":false,"merged":[[0,14,7,22],[1,8,1,11],[4,10,4,13],[26,3,37,9],[26,1,28,1],[22,2,22,3],[24,2,24,3],[0,6,0,7],[13,2,13,3],[14,2,14,3],[15,2,15,3],[12,2,12,3],[8,2,8,3],[9,2,9,3],[10,2,10,3],[11,2,11,3],[4,9,6,9],[18,2,18,3],[21,2,21,3],[23,2,23,3],[16,2,16,3],[20,2,20,3],[17,2,17,3],[7,6,7,9],[7,1,7,3],[19,2,19,3]]}
[null,{"$f":"'2. ВКУПНО СОБРАН ОТПАД'!B1","v":"ОПШТИНА"},null,{"$f":"'2. ВКУПНО СОБРАН ОТПАД'!C1","v":"Податочен период - ГОДИНА"},{"$f":"'2. ВКУПНО СОБРАН ОТПАД'!E1:F1","v":0},null,"ОРГАНИЗИРАНО СОБИРАЊЕ И ТРЕТИРАЊЕ ОТПАД",null,null,null,null,null,null,null,"Овој работен лист ја покажува финансиската одржливост на услугата и е индикативна. Подетална анализа на приходите и расходите е неопходна пред да се променат тарифите."]
[null,{"$f":"'2. ВКУПНО СОБРАН ОТПАД'!B2","v":"Пример општина"},null,null,null,"a","Вкупно домаќинства",{"$f":"SUM(H3:H4)","v":0},{"$f":"IF(H2='2. ВКУПНО СОБРАН ОТПАД'!C5,\"Се совпаѓа вредноста во работен лист 2 – Вкупно собран отпад \",\"Не се совпаѓа вредноста во работен лист 2 – Вкупно собран отпад\")","v":"Се совпаѓа вредноста во работен лист 2 – Вкупно собран отпад "}]
[null,{"$f":"'2. ВКУПНО СОБРАН ОТПАД'!B3","v":"Површина во km2"},{"$f":"'2. ВКУПНО СОБРАН ОТПАД'!C3","v":0},null,null,"b","Урбани"]
[null,{"$f":"'2. ВКУПНО СОБРАН ОТПАД'!B4","v":"Вкупен број на население "},{"$f":"'2. ВКУПНО СОБРАН ОТПАД'!C4","v":0},null,null,"c","Рурални"]
[null,{"$f":"'2. ВКУПНО СОБРАН ОТПАД'!B5","v":"Вкупен број на домаќинства"},{"$f":"'2. ВКУПНО СОБРАН ОТПАД'!C5","v":0},null,null,"d","Вкупно опслужени домаќинства ",{"$f":"SUM(H6:H7)","v":0},{"$f":"H5/H2","v":{"$error":"#DIV/0!"}},"Опфатеност на услугата",{"$f":"IF(H5='2. ВКУПНО СОБРАН ОТПАД'!C10,\"Се совпаѓа вредноста во работен лист 2 – Вкупно собран отпад\",\"Не се совпаѓа вредноста во работен лист 2 – Вкупно собран отпад\")","v":"Се совпаѓа вредноста во работен лист 2 – Вкупно собран отпад"}]
[null,{"$f":"'2. ВКУПНО СОБРАН ОТПАД'!B6","v":"Просечен бр. членови во домаќинство"},{"$f":"'2. ВКУПНО СОБРАН ОТПАД'!C6","v":{"$error":"#DIV/0!"}},null,null,"e","Урбани",null,{"$f":"H6/H3","v":{"$error":"#DIV/0!"}}]
[null,null,null,null,null,"f","Рурални",null,{"$f":"H7/H4","v":{"$error":"#DIV/0!"}}]
[null,"ОПШТИ И ФИНАНСИСКИ ПОДАТОЦИ ",null,null,null,null,"ТАРИФИ"]
[1,"Комунално претпријатие - назив и адреса на операторот",null,null,null,1,"Краен корисник","Моментална тарифа. Да се прецизира начинот на фактурирање по опслужен корисник (според m2 или m3 месечно, според kg/t, или поинаку) во денари","Платежна единица","Неопходна тарифа, во денари, за да се постигне резултат од 100% наплата ","Индекс на зголемување на тарифата"]
[2,"Главни активности и услуги",null,null,null,2,null,null,null,{"$f":"H10/$C$12","v":{"$error":"#DIV/0!"}},{"$f":"J10/H10","v":{"$error":"#DIV/0!"}}]
[3,"Удел на приходи од УЦО во вкупните приходи од компаниите ",null,null,null,3,null,null,null,{"$error":"#DIV/0!"},{"$error":"#DIV/0!"}]
[4,"% на фактурирани / наплатени приходи од услуги на УЦО",null,null,null,4,null,null,null,{"$error":"#DIV/0!"},{"$error":"#DIV/0!"}]
[5,"Вкупен приход од УЦО годишно, во денари",null,null,null,5,null,null,null,{"$error":"#DIV/0!"},{"$error":"#DIV/0!"}]
[6,"Вкупни давачки (материјални трошоци, плати, амортизација и др. трошоци) поврзани со собирање и транспорт на отпад, годишно, во денари",null,null,null,6,null,null,null,{"$error":"#DIV/0!"},{"$error":"#DIV/0!"}]
[7,"Оперативна добивка / загуба годишно, во денари",{"$f":"C13-C14","v":0},null,null,7,null,null,null,{"$error":"#DIV/0!"},{"$error":"#DIV/0!"}]
[8,"Неопходно зголемување на приходите за да се покрие оперативната загуба / или профитот над оперативните трошоци (знак „-“)",{"$f":"C15/-C13","v":{"$error":"#DIV/0!"}},null,null,8,null,null,null,{"$error":"#DIV/0!"},{"$error":"#DIV/0!"}]
[9,"Неопходно намалување на давачките за да се покријат оперативните трошоци (знак „-“) / или оперативните трошоци под приходите",{"$f":"C15/C14","v":{"$error":"#DIV/0!"}},null,null,9,null,null,null,{"$error":"#DIV/0!"},{"$error":"#DIV/0!"}]
[10,"Вкупно тони отпад собран на годишно ниво",{"$f":"'2. ВКУПНО СОБРАН ОТПАД'!H21","v":0},null,null,10,null,null,null,{"$error":"#DIV/0!"},{"$error":"#DIV/0!"}]
[11,"Вкупен број вработени ангажирани за УЦО, вкучувајќи ја и администрацијата ",null,null,null,11,null,null,null,{"$error":"#DIV/0!"},{"$error":"#DIV/0!"}]
[12,"Број на вработени директно и оперативно вклучени во УЦО",null,null,null,12,null,null,null,{"$error":"#DIV/0!"},{"$error":"#DIV/0!"}]
[13,"Сооднос на административни и оперативни работници, 1:",{"$f":"C20/(C19-C20)","v":{"$error":"#DIV/0!"}},null,null,13,null,null,null,{"$error":"#DIV/0!"},{"$error":"#DIV/0!"}]
[14,"Количина отпад собран годишно, по вработен во УЦО / тони",{"$f":"C18/C19","v":{"$error":"#DIV/0!"}},null,null,14,null,null,null,{"$error":"#DIV/0!"},{"$error":"#DIV/0!"}]
[15,"Број на население опслужено од вработени во УЦО",{"$f":"(H5/C19)","v":{"$error":"#DIV/0!"}},null,null,15,null,null,null,{"$error":"#DIV/0!"},{"$error":"#DIV/0!"}]
[16,"Број на вработени во УЦО на 1000 жители ",{"$f":"1000/C23","v":{"$error":"#DIV/0!"}},null,null,16,null,null,null,{"$error":"#DIV/0!"},{"$error":"#DIV/0!"}]
[17,"Моментален трошок за собирање и транспорт на отпад, ден./тон ",{"$f":"C14/C18","v":{"$error":"#DIV/0!"}},null,null,17,null,null,null,{"$error":"#DIV/0!"},{"$error":"#DIV/0!"}]
[]
[null,"ПОЧЕТНА",null,"Забелешки: "]

{"sheet":"8. ИНВЕСТИЦИСКО ФИНАНСИРАЊЕ","index":8,"n_rows":72,"n_cols":10,"rows_kept":72,"cut":false,"hidden":false,"merged":[[3,1,3,9],[71,1,73,1],[64,3,66,3],[64,6,66,6],[59,1,59,5]]}
[null,{"$f":"'2. ВКУПНО СОБРАН ОТПАД'!B1","v":"ОПШТИНА"},null,{"$f":"'2. ВКУПНО СОБРАН ОТПАД'!C1","v":"Податочен период - ГОДИНА"},{"$f":"'2. ВКУПНО СОБРАН ОТПАД'!E1:F1","v":0}]
[null,{"$f":"'2. ВКУПНО СОБРАН ОТПАД'!B2","v":"Пример општина"}]
[]
[null,"ИНВЕСТИЦИИ ВО ОПРЕМА И НЕДВИЖНИНИ  "]
[]
[null,"ОПЕРАТОР  - НАЗИВ НА ЈАВНО КОМУНАЛНО ПРЕТПРИЈАТИЕ",1,2,3,4,5,6,7,8]
[null,"Опрема за собирање и транспорт на ЦО","Реален број на единици во служба","Планирани набавки ","Цена за набавка на нова единица во денари","Неопходни инвестиции во денари","Степен на амортизација","Годишна амортизација","Планирани трошоци за заемни услуги на годишно ниво","Амортизација и заемни услуги годишно"]
[1,"Контејнери 120 l",null,null,null,{"$f":"D8*E8","v":0},null,{"$f":"F8*G8","v":0},null,{"$f":"H8+I8","v":0}]
[2,"Контејнери 240 l",null,null,null,{"$f":"D9*E9","v":0},null,{"$f":"F9*G9","v":0},null,{"$f":"H9+I9","v":0}]
[3,"Контејнери 660 l",null,null,null,{"$f":"D10*E10","v":0},null,{"$f":"F10*G10","v":0},null,{"$f":"H10+I10","v":0}]
[4,"Контејнери 770 l",null,null,null,{"$f":"D11*E11","v":0},null,{"$f":"F11*G11","v":0},null,{"$f":"H11+I11","v":0}]
[5,"Контејнери 1100 l",null,null,null,0,null,0,null,0]
[6,"Контејнери на подигнување 3,5m³",null,null,null,0,null,0,null,0]
[7,"Контејнери на подигнување 5m³",null,null,null,0,null,0,null,0]
[8,"Контејнери на подигнување 7m³",null,null,null,0,null,0,null,0]
[9,"Контејнер на дигалка 2,5",null,null,null,0,null,0,null,0]
[10,"Контејнер на дигалка 5m³",null,null,null,0,null,0,null,0]
[11,"Контејнер на дигалка 10m³",null,null,null,0,null,0,null,0]
[12,"Контејнер на дигалка 25m³",null,null,null,0,null,0,null,0]
[13,"Контејнер на дигалка 35m³",null,null,null,0,null,0,null,0]
[14,null,null,null,null,0,null,0,null,0]
[15,null,null,null,null,0,null,0,null,0]
[16,"Други контејнери",null,null,null,{"$f":"D23*E23","v":0},null,{"$f":"F23*G23","v":0},null,0]
[null,"Збир на опрема за собирање отпад",{"$f":"SUM(C8:C23)","v":0},{"$f":"SUM(D8:D23)","v":0},null,{"$f":"SUM(F8:F23)","v":0},null,{"$f":"SUM(H8:H23)","v":0},{"$f":"SUM(I8:I23)","v":0},{"$f":"SUM(J8:J23)","v":0}]
[1,"Возила камиони 8t",null,null,null,{"$f":"D25*E25","v":0},null,{"$f":"F25*G25","v":0},null,{"$f":"H25+I25","v":0}]
[2,"Возила камиони 12t",null,null,null,{"$f":"D26*E26","v":0},null,{"$f":"F26*G26","v":0},null,{"$f":"H26+I26","v":0}]
[3,"Возила ротопреса",null,null,null,{"$f":"D27*E27","v":0},null,{"$f":"F27*G27","v":0},null,{"$f":"H27+I27","v":0}]
[4,"Возила компактори за отпад",null,null,null,{"$f":"D28*E28","v":0},null,{"$f":"F28*G28","v":0},null,{"$f":"H28+I28","v":0}]
[5,"Камион подигач",null,null,null,{"$f":"D29*E29","v":0},null,{"$f":"F29*G29","v":0},null,{"$f":"H29+I29","v":0}]
[6,"Камион со отворен товарен сандак",null,null,null,0,null,0,null,0]
[7,"Скип камион",null,null,null,0,null,0,null,0]
[8,"Камион со дигалка",null,null,null,0,null,0,null,0]
[9,"Возило за странично товарење",null,null,null,0,null,0,null,0]
[10,"Трактор и приколка",null,null,null,0,null,0,null,0]
[11,"Други возила",null,null,null,{"$f":"D35*E35","v":0},null,{"$f":"F35*G35","v":0},null,0]
[null,"Збир на транспортна опрема",{"$f":"SUM(C25:C35)","v":0},{"$f":"SUM(D25:D35)","v":0},null,{"$f":"SUM(F25:F35)","v":0},null,{"$f":"SUM(H25:H35)","v":0},{"$f":"SUM(I25:I35)","v":0},{"$f":"SUM(J25:J35)","v":0}]
[null,"ВКУПЕН ЗБИР",null,null,null,{"$f":"F24+F36","v":0},null,{"$f":"H24+H36","v":0},{"$f":"I24+I36","v":0},{"$f":"J24+J36","v":0}]
[null,"ОПЕРАТОР  - НАЗИВ НА ЈАВНО КОМУНАЛНО ПРЕТПРИЈАТИЕ","1.1","2.1","3.1","4.1","5.1","6.1","7.1","8.1"]
[null,"Третирање на отпад, рециклирање, искористување","Реален број на единици во служба","Планирани набавки","Цена за набавка на нова единица во денари","Неопходни инвестиции во денари","Степен на амортизација","Годишна амортизација","Планирани давачки за заемни услуги на годишно ниво","Амортизација и заемни услуги годишно"]
[1,"Истраги, дизајн, дозволи",null,null,null,{"$f":"D40*E40","v":0},null,{"$f":"F40*G40","v":0},null,{"$f":"H40+I40","v":0}]
[2,"Купување земјиште",null,null,null,{"$f":"D41*E41","v":0},null,{"$f":"F41*G41","v":0},null,{"$f":"H41+I41","v":0}]
[3,"Механички инсталации",null,null,null,0,null,0,null,0]
[4,"Мобилна опрема",null,null,null,0,null,0,null,0]
[5,"Градежништво",null,null,null,0,null,0,null,0]
[6,null,null,null,null,0,null,0,null,0]
[7,"Други трошоци",null,null,null,0,null,0,null,{"$f":"H46+I46","v":0}]
[null,"Збир, третирање",{"$f":"SUM(C40:C46)","v":0},null,null,{"$f":"SUM(F40:F46)","v":0},null,{"$f":"SUM(H40:H46)","v":0},{"$f":"SUM(I40:I46)","v":0},{"$f":"SUM(J40:J46)","v":0}]
[null,"ОПЕРАТОР  - НАЗИВ НА ЈАВНО КОМУНАЛНО ПРЕТПРИЈАТИЕ","1.2","2.2","3.2","4.2","5.2","6.2","7.2","8.2"]
[null,"Инвестиции во депонии","Реален број на единици во служба","Планирани набавки","Цена за набавка на нова единица во денари","Неопходни инвестиции во денари","Степен на амортизација","Годишна амортизација","Планирани давачки за заемни услуги на годишно ниво","Амортизација и заемни услуги годишно"]
[1,"Истраги, дизајн, дозволи",null,null,null,0,null,0,null,0]
[2,"Купување земјиште",null,null,null,0,null,0,null,0]
[3,"Механички инсталации",null,null,null,0,null,0,null,0]
[4,"Мобилна опрема",null,null,null,0,null,0,null,0]
[5,"Градежништво",null,null,null,{"$f":"D54*E54","v":0},null,{"$f":"F54*G54","v":0},null,{"$f":"H54+I54","v":0}]
[6,null,null,null,null,{"$f":"D55*E55","v":0},null,{"$f":"F55*G55","v":0},null,{"$f":"H55+I55","v":0}]
[7,"Други трошоци",null,null,null,{"$f":"D56*E56","v":0},null,{"$f":"F56*G56","v":0},null,{"$f":"H56+I56","v":0}]
[null,"Збир, опремување депонии",{"$f":"SUM(C50:C56)","v":0},null,null,{"$f":"SUM(F50:F56)","v":0},null,{"$f":"SUM(H50:H56)","v":0},{"$f":"SUM(I50:I56)","v":0},{"$f":"SUM(J50:J56)","v":0}]
[null,"ВКУПНО ТРЕТИРАЊЕ И ОТСТРАНУВАЊЕ",null,null,null,{"$f":"F47+F57","v":0},null,{"$f":"H47+H57","v":0},{"$f":"I47+I57","v":0},{"$f":"J47+J57","v":0}]
[null,"СЕВКУПНА ИНВЕСТИЦИЈА",null,null,null,{"$f":"SUM(F37,F58)","v":0},null,{"$f":"SUM(H37,H58)","v":0},{"$f":"SUM(I37,I58)","v":0},{"$f":"SUM(J37,J58)","v":0}]
[null,"СОБИРАЊЕ, ТРАНСПОРТ, РЕЦИКЛИРАЊЕ И КОРЕКЦИЈА НА ТРОШОЦИТЕ ПОВРЗАНИ СО ДЕПОНИЈАТА"]
[1,"Моментални годишни трошоци за собирање и транспорт на отпад, во денари",{"$f":"'7. ПОКРИВАЊЕ ТРОШОЦИ ЗА С&Т'!C14:D14","v":0},null,"Моментални годишни трошоци за собирање, искористување, транспорт, третирање и депонирање, во денари",{"$f":"C61","v":0}]
[2,"Проценето дополнително зголемување на трошоците за опрема за собирање отпад",{"$f":"J37","v":0},{"$f":"C62/$C$61","v":{"$error":"#DIV/0!"}},"Проценети дополнителни годишни давачки за сите инвестиции (капитални трошоци)",{"$f":"J59","v":0}]
[3,"Проценето годишно зголемување на варијабилните трошоци за собирање и транспорт на отпад, во денари",null,{"$f":"C63/$C$61","v":{"$error":"#DIV/0!"}},"Проценето годишно зголемување на оперативните трошоци за третирање и депонирање, изразено во денари"]
[4,"Проценето годишно зголемување на давачките",{"$f":"SUM(C62:C63)","v":0},{"$f":"C64/$C$61","v":{"$error":"#DIV/0!"}},"Проценето годишно зголемување на давачките",{"$f":"SUM(F62:F63)","v":0},{"$f":"F64/$F$61","v":{"$error":"#DIV/0!"}}]
[5,"Вкупни годишни давачки",{"$f":"SUM(C61:C63)","v":0},null,"Проценети вкупни годишни давачки",{"$f":"SUM(F61:F63)","v":0}]
[6,"Моментален трошок за собирање и транспорт за тон, изразен во ден. /тон",{"$f":"'7. ПОКРИВАЊЕ ТРОШОЦИ ЗА С&Т'!C25:D25","v":{"$error":"#DIV/0!"}},null,{"$f":"B67","v":"Проценет трошок за собирање и транспорт на отпад, вклучувајќи ги и инвестициите во опрема, изразен во ден. /тон. "},{"$f":"C67","v":{"$error":"#DIV/0!"}}]
[7,"Проценет трошок за собирање и транспорт на отпад, вклучувајќи ги и инвестициите во опрема, изразен во ден. /тон. ",{"$f":"C66*(1+D64)","v":{"$error":"#DIV/0!"}},null,"Проценето зголемување на давачките за инвестиции во рециклирање, искористување и депонирање на собрани количини отпад, изразено во ден. / тон. ",{"$f":"F64/'2. ВКУПНО СОБРАН ОТПАД'!H21","v":{"$error":"#DIV/0!"}}]
[8,"Проценето зголемување на трошокот  за собирање и транспорт на отпад, изразен во ден. /тон. ",{"$f":"C67-C66","v":{"$error":"#DIV/0!"}},{"$f":"C68/C66","v":{"$error":"#DIV/0!"}},"Проценет вкупен трошок за УЦО (собирање, транспорт, третирање и депонирање) вклучувајќи ги инвестициите, изразен во ден. / тон",{"$f":"F67+F66","v":{"$error":"#DIV/0!"}},{"$f":"F68/$F$69","v":{"$error":"#DIV/0!"}}]
[null,null,null,null,{"$f":"B66","v":"Моментален трошок за собирање и транспорт за тон, изразен во ден. /тон"},{"$f":"C66","v":{"$error":"#DIV/0!"}}]
[null,null,null,null,"Проценето зголемување на давачките за инвестиции во собирање, транспорт и депонирање на отпад, изразено во ден. / тон",{"$f":"F68-F69","v":{"$error":"#DIV/0!"}},{"$f":"F70/$F$69","v":{"$error":"#DIV/0!"}}]
[]
[null,"ПОЧЕТНА"]

{"sheet":"9. НАРАТИВНИ ИНФОРМАЦИИ ЗА ЦО","index":9,"n_rows":175,"n_cols":8,"rows_kept":175,"cut":false,"hidden":false,"merged":[[26,2,26,4],[24,2,24,4],[29,4,29,5],[1,1,1,4],[0,1,0,4],[22,2,22,4],[154,3,154,4],[155,3,155,4],[166,3,166,4],[167,3,167,4],[168,3,168,4],[137,3,137,4],[138,3,138,4],[144,3,144,4],[131,3,131,4],[133,3,133,4],[57,2,57,4],[60,2,60,4],[134,3,134,4],[135,3,135,4],[132,3,132,4],[130,3,130,4],[62,2,62,4],[58,2,58,4],[174,1,176,1],[139,3,139,4],[140,3,140,4],[141,3,141,4],[143,3,143,4],[142,3,142,4],[165,3,165,4],[171,3,171,4],[145,3,145,4],[146,3,146,4],[147,3,147,4],[151,3,151,4],[152,3,152,4],[169,3,169,4],[170,3,170,4],[153,3,153,4]]}
[null,"НАРАТИВНИ ИНФОРМАЦИИ - УПРАВУВАЊЕ СО КОМУНАЛЕН ОТПАД"]
[null,{"$f":"'2. ВКУПНО СОБРАН ОТПАД'!B2:F2","v":"Пример општина"}]
[1,"Ниво на прибирање информации",null,"ДА","НЕ"]
[null,null,"Општина"]
[null,null,"Град"]
[null,null,"Област, регион"]
[]
[2,"Начин на собирање отпад",null,"ДА","НЕ"]
[null,null,"Традиционално"]
[null,null,"Одделно собирање на отпадни фракции"]
[null,null,"Одделно собирање на габаритен отпад"]
[]
[3,"Операции за искористување на отпад",null,"ДА","НЕ"]
[null,null,"организирани"]
[null,null,"неорганизирани"]
[]
[4,"Локација за организирано издвојување",null,"ДА","НЕ"]
[null,null,"Дома"]
[null,null,"Улица"]
[null,null,"Депонија"]
[null,null,"Друго"]
[]
[5,"Назив и адреса на оператори кои собираат и транспортираат општински отпад "]
[]
[6,"Име на одговорното лице"]
[]
[7,"Последен датум на внесување"]
[]
[]
[8,"ВОЛУМЕН НА ОТПАД ЗА СОБИРАЊЕ - Јавно комунално претпријатие или оператор кој собира и транспортира комунален отпад","Опрема за собирање отпад и негово транспортирање до локации за отстранување","ТИП","Капацитет во m³/тони",null,"БРОЈ"]
[null,null,"Камиони ротопреси"]
[null,null,"Компактори за отпад"]
[null,null,"Отворени камиони"]
[null,null,"Трактори"]
[null,null,"Други "]
[null,null,"Контејнери за рециклирање"]
[null,null,"Контејнери 5 t"]
[null,null,"Друго "]
[null,null,"Контејнери за рециклирање",null,null,null,"Број","m³"]
[null,null,"Контејнери на подигнување 3,5m³",null,null,null,null,{"$f":"G40*E40","v":0}]
[null,null,"Контејнери на подигнување 5m³",null,null,null,null,{"$f":"G41*E41","v":0}]
[null,null,"Контејнери на подигнување 7 m³",null,null,null,null,0]
[null,null,"Контејнер на дигалка 2,5m³",null,null,null,null,0]
[null,null,"Контејнер на дигалка 5 m³",null,null,null,null,0]
[null,null,"Контејнер на дигалка 10 m³",null,null,null,null,0]
[null,null,"Контејнер на дигалка 25 m³",null,null,null,null,0]
[null,null,"Контејнер на дигалка 35 m³",null,null,null,null,0]
[null,null,"Контејнери 1.100 l",null,null,null,null,0]
[null,null,"Контејнер 660 l",null,null,null,null,0]
[null,null,"Контејнер 770 l",null,null,null,null,0]
[null,null,"Канти 120 l",null,null,null,null,0]
[null,null,"Канти 240 l",null,null,null,null,0]
[null,null,"Торби",null,null,null,null,0]
[null,null,"Друго ",null,null,null,null,0]
[null,null,"ЗБИР, волумен на собран отпад даден во m3",null,null,null,{"$f":"SUM(G40:G54)","v":0},{"$f":"SUM(H40:H54)","v":0}]
[]
[]
[9,"Локација на депонијата - општина и име на локацијата, гео координати"]
[null,"Година на започнување со депонирање отпад"]
[]
[10,"Општини кои одлагаат отпад на депонија"]
[]
[11,"Назив и адреса на операторот со депонијата"]
[]
[12,"Депонија - информации за локацијата на депонирање",null,"ДА","НЕ"]
[null,null,"Во согласност со ЕУ"]
[null,null,"Традиционална депонија"]
[null,"Депонија - сопствеништво на локацијата ","Државно"]
[null,null,"Приватно"]
[null,null,"Мешано"]
[null,"Депонија - Регулаторен статус на локацијата ","Дозволена"]
[null,null,"Недозволена"]
[null,null,"По исклучок"]
[null,null,"Предложена"]
[null,null,"Незаконска"]
[null,"Депонија - локација на депонирање - Оперативен статус","Во план"]
[null,null,"Во изградба"]
[null,null,"Активна"]
[null,null,"Неактивна"]
[null,null,"Рехабилитација во тек"]
[null,null,"Треба да се затвори"]
[null,null,"Затворена"]
[null,null,"Затворена и исчистена"]
[null,null,"Да се одреди"]
[null,"Депонија - локација на депонирање -тип оператор","Федерален"]
[null,null,"Државен"]
[null,null,"Регионален"]
[null,null,"Градски"]
[null,null,"Општински"]
[null,null,"Приватен"]
[null,null,"Единица"]
[null,"Инфраструктура на депонијата","Помошен пат"]
[null,null,"Интерни патишта"]
[null,null,"Вода"]
[null,null,"Канализација"]
[null,null,"Струја"]
[null,null,"Гасна поврзаност"]
[null,null,"Мостов кантар за камиони"]
[null,null,"Опрема за перење возила"]
[null,"Механизација на местата за фрлање отпад","Булдожери"]
[null,null,"Компактори на отпад"]
[null,null,"Друго - да се прецизира"]
[null,"Еколошка опрема на депонијата","Одвод"]
[null,null,"Канали за површински води"]
[null,null,"Колектор за отпадна вода од исцедок"]
[null,null,"Систем за прочистување на вода"]
[null,null,"Покривање и набивање"]
[null,null,"Дезинфекција и дерацинација"]
[null,null,"Друго"]
[null,"Вид отпад што се депонира и технологии за третирање отпад што се користат во депонијата","Видови отпад дозволени да се депонираат без третирање "]
[null,null,"Метали"]
[null,null,"Отпад од пакување"]
[null,null,"Земјоделски отпад"]
[null,null,"Градежнички отпад"]
[null,null,"Електронски отпад"]
[null,null,"Опасен отпад од домаќинства"]
[null,null,"Медицински отпад"]
[null,null,"Животински отпад"]
[null,null,"Пепел и кал"]
[null,null,"Гуми"]
[null,null,"Покривање на отпад со инертни материјали"]
[null,null,"Издвојување на отпадот на локацијата "]
[null,null,"Капацитети за искористување / процесирање отпад"]
[null,null,"Капацитети за рециклирање"]
[null,null,"Капацитети за компостирање"]
[null,null,"Гасификација"]
[null,null,"Палење"]
[null,null,"Комбиниран третман"]
[null,null,"Друго - да се наведе"]
[]
[null,"Геометрија на депонијата","Должина во метри"]
[null,null,"Ширина во метри"]
[null,null,"Површина во м2"]
[null,null,"Волумен во м2"]
[null,null,"Вкупен капацитет на депонијата во м3"]
[null,null,"Капацитет на депонијата искористен до 2010, во м3"]
[]
[null,"Оддалеченост на депонијата (во метри) од","Населени места"]
[null,null,"Потоци, реки, езера"]
[null,null,"Извори за снабдување со вода"]
[null,null,"Здравствени центри или болници"]
[null,null,"Место за производство на храна"]
[null,null,"Подземна инфраструктура"]
[null,null,"Гасовод или нафтовод"]
[null,null,"Автобуска или железничка станица "]
[null,null,"Аеродром"]
[null,null,"Склад на запалливи материјали"]
[null,null,"Заштитени области"]
[]
[]
[null,"Оперативно финансирање за собирање и транспорт на отпад"]
[null,null,"Трошоци што ги сноси корисникот - тарифи (да се појасни: за домаќинства по лице, по домаќинство, кг/тон или м2, во денари)"]
[null,null,"Трошоци што ги сноси корисникот - тарифи (да се појасни: за индустрија и трговија, кг/тон, м2 или друго, во денари)"]
[null,null,"Одделно за транспорт и собирање, на м3 или kg/t во денари"]
[null,null,"Одделно за одлагање на депонија, на м3 или kg/t, во денари"]
[null,null,"Еден трошок за собирање и депонирање на м3 или kg/t во денари"]
[]
[13,"Целосно покривање на трошоците за собирање и транспорт на отпадот до депонијата ",null,"ДА","НЕ"]
[null,null,"Моменталната тарифа ги покрива оперативните трошоци"]
[null,null,"Моменталната тарифа ги покрива оперативните трошоци и амортизацијата"]
[null,null,"Моменталната тарифа ги покрива сите трошоци, вклучувајќи ги и инвестициите / исплаќањето на заемот"]
[null,"Такси за депонирање и други трошоци за фрлање отпад во контролирани депонии ","Моменталната тарифа ги покрива оперативните трошоци"]
[null,null,"Моменталната тарифа ги покрива оперативните трошоци и амортизацијата "]
[null,null,"Моменталната тарифа ги покрива сите трошоци, вклучувајќи ги и инвестициите / исплаќањето на заемот"]
[]
[14,"Инвестициско финансирање","Фонд за заштита на средината"]
[null,"Локален план за финансирање на нови контролирани депонии или управување со отпад, апсолутни суми во  денари или % од вкупната инвестициска вредност","Интернационални донации"]
[null,null,"Државни субвенции"]
[null,null,"Буџет на општината"]
[null,null,"Директни заеми"]
[null,null,"Инвестиции или учество од приватниот сектор"]
[null,null,"Вкупно",{"$f":"SUM(D166:E171)","v":0}]
[]
[]
[null,"ПОЧЕТНА"]